bitfinex/quotes_BTCUSD_20251207
["timestamp","ask_amount","ask_price","bid_price","bid_amount"]
[1765108145360,1.33369513,89241.0,89240.0,0.00076108]
[1765108145771,1.31419213,89241.0,89240.0,0.00076108]
[1765108146121,1.29949413,89241.0,89240.0,0.00076108]
[1765108146317,1.40919919,89241.0,89240.0,0.00076108]
[1765108147122,1.39151919,89241.0,89240.0,0.00076108]
[1765108147330,1.29949413,89241.0,89240.0,0.00076108]
[1765108147665,1.26934614,89241.0,89240.0,0.00076108]
[1765108148293,1.29949413,89241.0,89240.0,0.00076108]
[1765108148577,1.32362486,89241.0,89240.0,0.00076108]
[1765108149232,1.29347687,89241.0,89240.0,0.00076108]
[1765108150334,1.06258888,89241.0,89240.0,0.00076108]
[1765108150888,1.16875825,89241.0,89240.0,0.00076108]
[1765108151084,1.37020825,89241.0,89240.0,0.00076108]
[1765108151278,1.35901225,89241.0,89240.0,0.00076108]
[1765108151714,1.34551625,89241.0,89240.0,0.00076108]
[1765108152087,1.22166688,89241.0,89240.0,0.00076108]
[1765108152291,0.73958888,89241.0,89240.0,0.00076108]
[1765108152513,1.06258888,89241.0,89240.0,0.00076108]
[1765108152748,0.66258888,89241.0,89240.0,0.00076108]
[1765108153091,0.65858888,89241.0,89240.0,0.00076108]
[1765108153294,0.77029394,89241.0,89240.0,0.00076108]
[1765108153712,0.65758888,89241.0,89240.0,0.00076108]
[1765108153906,0.65558888,89241.0,89240.0,0.00076108]
[1765108154158,0.65758888,89241.0,89240.0,0.00076108]
[1765108154911,0.66776755,89241.0,89240.0,0.00076108]
[1765108155228,0.69962028,89241.0,89240.0,0.00076108]
[1765108155434,0.71010876,89241.0,89240.0,0.00076108]
[1765108156099,0.69962028,89241.0,89240.0,0.00076108]
[1765108156328,0.69762028,89241.0,89240.0,0.00076108]
[1765108156528,0.70910703,89241.0,89240.0,0.00076108]
[1765108156919,0.81881209,89241.0,89240.0,0.00376108]
[1765108157100,0.68094028,89241.0,89240.0,0.00376108]
[1765108157318,0.69862028,89241.0,89240.0,0.00376108]
[1765108158260,0.63989028,89241.0,89240.0,0.00376108]
[1765108158482,0.65757028,89241.0,89240.0,0.00376108]
[1765108158888,0.69736028,89241.0,89240.0,0.00376108]
[1765108159250,0.67968028,89241.0,89240.0,0.00376108]
[1765108159450,0.69736028,89241.0,89240.0,0.00376108]
[1765108160589,0.33420611,89237.0,89233.0,0.01120661]
[1765108160786,0.01120623,89236.0,89233.0,0.01129491]
[1765108163093,0.01120623,89236.0,89233.0,0.01429491]
[1765108163445,0.01120623,89236.0,89233.0,0.03777491]
[1765108163846,0.01120623,89236.0,89233.0,0.01429491]
[1765108164492,0.23532047,89240.0,89235.0,0.01120636]
[1765108164800,0.03365615,89237.0,89235.0,0.2353334]
[1765108165008,0.01120586,89239.0,89235.0,0.2353334]
[1765108165419,0.01120586,89239.0,89236.0,0.01120623]
[1765108165626,0.01120623,89236.0,89233.0,0.01429491]
[1765108166020,0.03585623,89236.0,89233.0,0.01429491]
[1765108166229,0.25998155,89236.0,89233.0,8.83e-05]
[1765108166438,0.01229,89234.0,89233.0,8.83e-05]
[1765108166787,0.25155981,89234.0,89233.0,8.83e-05]
[1765108166996,0.27620981,89234.0,89233.0,8.83e-05]
[1765108167150,0.68803604,89234.0,89233.0,0.0020883]
[1765108167349,0.692524,89234.0,89233.0,8.83e-05]
[1765108167723,0.60369777,89234.0,89233.0,0.0030883]
[1765108168179,0.62783816,89234.0,89233.0,0.0030883]
[1765108168322,0.63831608,89234.0,89233.0,0.0030883]
[1765108168738,1.04031608,89234.0,89233.0,0.0030883]
[1765108168961,1.04031608,89234.0,89233.0,8.83e-05]
[1765108169170,1.15002114,89234.0,89233.0,8.83e-05]
[1765108169372,1.13754322,89234.0,89233.0,8.83e-05]
[1765108169695,1.14054322,89234.0,89233.0,8.83e-05]
[1765108169904,1.14254322,89234.0,89233.0,8.83e-05]
[1765108170062,1.14254322,89234.0,89233.0,0.0100883]
[1765108170964,1.03283816,89234.0,89233.0,0.0100883]
[1765108171499,0.63283816,89234.0,89233.0,0.0100883]
[1765108173972,0.62637777,89234.0,89233.0,0.0100883]
[1765108174770,0.62337777,89234.0,89233.0,0.0100883]
[1765108175328,0.64652713,89234.0,89233.0,0.0100883]
[1765108175499,0.64652713,89234.0,89233.0,0.0110883]
[1765108176049,0.62884713,89234.0,89233.0,0.0110883]
[1765108176217,0.64652713,89234.0,89233.0,0.0110883]
[1765108178000,0.62187713,89234.0,89233.0,0.0110883]
[1765108180919,0.64652713,89234.0,89233.0,0.0110883]
[1765108184189,0.62187713,89234.0,89233.0,0.0110883]
[1765108184575,0.64655713,89234.0,89233.0,0.0110883]
[1765108187167,0.65704424,89234.0,89233.0,0.0110883]
[1765108195305,1.05704424,89234.0,89233.0,0.0100883]
[1765108195785,1.05804424,89234.0,89233.0,0.0100883]
[1765108196184,1.06104424,89234.0,89233.0,0.0100883]
[1765108202468,1.04336424,89234.0,89233.0,0.0100883]
[1765108202674,1.06104424,89234.0,89233.0,0.0100883]
[1765108205035,0.66104424,89234.0,89233.0,0.0100883]
[1765108208233,0.66074727,89234.0,89233.0,0.0100883]
[1765108211716,0.60893424,89234.0,89233.0,0.0100883]
[1765108211931,0.07841732,89234.0,89233.0,0.0100883]
[1765108212487,0.07641732,89234.0,89233.0,0.0100883]
[1765108212869,0.07641732,89234.0,89233.0,0.0110883]
[1765108213313,0.07341732,89234.0,89233.0,0.0110883]
[1765108213733,0.07441732,89234.0,89233.0,0.0110883]
[1765108216948,0.11438732,89234.0,89233.0,0.0110883]
[1765108219636,0.29854713,89234.0,89233.0,0.0110883]
[1765108219829,0.07441732,89234.0,89233.0,0.0110883]
[1765108221797,0.001,89234.0,89233.0,0.27435062]
[1765108222016,0.001,89234.0,89233.0,0.0265083]
[1765108223237,0.001,89234.0,89233.0,0.0110883]
[1765108225459,0.04097,89234.0,89233.0,0.0110883]
[1765108234963,0.36397,89234.0,89233.0,0.0110883]
[1765108250751,0.38165,89234.0,89233.0,0.0110883]
[1765108257142,0.36397,89234.0,89233.0,0.0110883]
[1765108257308,0.38165,89234.0,89233.0,0.0110883]
[1765108263802,0.36397,89234.0,89233.0,0.0110883]
[1765108264082,0.38165,89234.0,89233.0,0.0110883]
[1765108269645,0.38165,89234.0,89233.0,0.0210883]
[1765108278261,0.39134,89234.0,89233.0,0.0210883]
[1765108279014,0.34168,89234.0,89233.0,0.0319483]
[1765108279600,0.34168,89234.0,89233.0,0.0210883]
[1765108279806,0.38171,89234.0,89233.0,0.0210883]
[1765108285681,0.4027983,89234.0,89233.0,0.0210883]
[1765108289426,0.3627683,89234.0,89233.0,0.0210883]
[1765108289987,0.3781683,89234.0,89233.0,0.0210883]
[1765108290186,0.4027983,89234.0,89233.0,0.0210883]
[1765108295884,0.50505872,89234.0,89233.0,0.0210883]
[1765108296090,0.41329137,89234.0,89233.0,0.0210883]
[1765108298632,0.43746149,89234.0,89233.0,0.0210883]
[1765108300937,0.83746149,89234.0,89233.0,0.0210883]
[1765108301543,0.43746149,89234.0,89233.0,0.0210883]
[1765108301747,0.43745789,89234.0,89233.0,0.0210883]
[1765108301950,0.83745789,89234.0,89233.0,0.0210883]
[1765108306821,0.43745789,89234.0,89233.0,0.0210883]
[1765108308369,0.42696842,89234.0,89233.0,0.0210883]
[1765108308577,0.43745632,89234.0,89233.0,0.0210883]
[1765108310666,0.83745632,89234.0,89233.0,0.0210883]
[1765108314702,0.83745462,89234.0,89233.0,0.0210883]
[1765108315562,0.94715968,89234.0,89233.0,0.0210883]
[1765108316170,0.83745462,89234.0,89233.0,0.0210883]
[1765108316763,0.89997761,89234.0,89233.0,0.0210883]
[1765108319030,0.89897761,89234.0,89233.0,0.0210883]
[1765108319451,0.90097761,89234.0,89233.0,0.0210883]
[1765108319627,0.90097761,89234.0,89233.0,0.0200883]
[1765108319824,1.01268267,89234.0,89233.0,0.0200883]
[1765108320798,1.00219647,89234.0,89233.0,0.0200883]
[1765108320990,1.01268006,89234.0,89233.0,0.0200883]
[1765108322990,3.01268006,89234.0,89233.0,0.0200883]
[1765108323332,2.91892406,89234.0,89233.0,0.0200883]
[1765108323756,2.90832406,89234.0,89233.0,0.0200883]
[1765108329705,2.90832406,89234.0,89232.0,0.00024277]
[1765108329706,2.60965531,89233.0,89232.0,0.00024277]
[1765108329857,2.60965531,89233.0,89232.0,0.00036113]
[1765108329858,2.79514408,89233.0,89232.0,0.00036113]
[1765108330483,3.19963333,89233.0,89232.0,0.00036113]
[1765108330682,3.2600969,89233.0,89232.0,0.00036113]
[1765108330861,3.20263333,89233.0,89232.0,0.00036113]
[1765108331062,3.20563333,89233.0,89232.0,0.00036113]
[1765108331275,3.19220433,89233.0,89232.0,0.00036113]
[1765108331475,2.73172233,89233.0,89232.0,0.00036113]
[1765108331677,2.32090033,89233.0,89232.0,0.00036113]
[1765108331879,1.09592827,89233.0,89232.0,0.00036113]
[1765108332131,1.27613127,89233.0,89232.0,0.00036113]
[1765108332315,1.09587508,89233.0,89232.0,0.00036113]
[1765108332519,1.11355508,89233.0,89232.0,0.00036113]
[1765108333526,1.48246914,89233.0,89232.0,0.00036113]
[1765108334342,1.22326014,89233.0,89232.0,0.00036113]
[1765108334809,1.41803014,89233.0,89232.0,0.00036113]
[1765108335442,1.32730014,89233.0,89232.0,0.00036113]
[1765108336046,1.32966214,89233.0,89232.0,0.00036113]
[1765108336259,1.22326014,89233.0,89232.0,0.00036113]
[1765108336662,1.32794914,89233.0,89232.0,0.00036113]
[1765108336865,1.32987714,89233.0,89232.0,0.00036113]
[1765108337117,1.22326014,89233.0,89232.0,0.00036113]
[1765108337834,1.32362914,89233.0,89232.0,0.00036113]
[1765108337982,1.32341914,89233.0,89232.0,0.00036113]
[1765108338461,1.22326014,89233.0,89232.0,0.00036113]
[1765108338881,1.32352414,89233.0,89232.0,0.00036113]
[1765108339103,1.33087114,89233.0,89232.0,0.00036113]
[1765108339344,1.33072014,89233.0,89232.0,0.00036113]
[1765108339544,1.32863665,89233.0,89232.0,0.00036113]
[1765108343499,1.31095665,89233.0,89232.0,0.00036113]
[1765108343699,1.21893159,89233.0,89232.0,0.00036113]
[1765108352193,1.20125159,89233.0,89232.0,0.00036113]
[1765108352383,1.21893159,89233.0,89232.0,0.00036113]
[1765108353904,1.0510466,89233.0,89232.0,0.00036113]
[1765108354111,1.2491996,89233.0,89232.0,0.00036113]
[1765108354932,1.35890466,89233.0,89232.0,0.00036113]
[1765108355134,1.2491996,89233.0,89232.0,0.00036113]
[1765108356598,1.2491996,89233.0,89232.0,0.01036113]
[1765108358307,1.24921731,89233.0,89232.0,0.01036113]
[1765108358626,1.22506816,89233.0,89232.0,0.01036113]
[1765108361442,1.2552546,89233.0,89232.0,0.01036113]
[1765108362283,1.22506816,89233.0,89232.0,0.01036113]
[1765108362473,1.02691516,89233.0,89232.0,0.01036113]
[1765108363376,1.00923516,89233.0,89232.0,0.01036113]
[1765108363674,1.02691516,89233.0,89232.0,0.01036113]
[1765108367128,0.60923516,89233.0,89232.0,0.01036113]
[1765108367328,0.62691516,89233.0,89232.0,0.01036113]
[1765108367750,0.62091516,89233.0,89232.0,0.01036113]
[1765108368179,0.62091516,89233.0,89232.0,0.01236113]
[1765108371096,1.02091516,89233.0,89232.0,0.01236113]
[1765108373535,0.62091516,89233.0,89232.0,0.01236113]
[1765108374128,0.27337516,89233.0,89232.0,0.01236113]
[1765108374339,0.02816359,89233.0,89232.0,0.01236113]
[1765108374532,0.01768,89233.0,89232.0,0.01236113]
[1765108374953,0.09120636,89235.0,89232.0,0.2870427]
[1765108374954,0.08,89235.0,89232.0,0.2870427]
[1765108375103,0.07341732,89239.0,89236.0,0.01120623]
[1765108375455,0.07341732,89239.0,89232.0,0.04782787]
[1765108375456,0.07341732,89239.0,89238.0,0.0259]
[1765108376926,0.07441732,89239.0,89238.0,0.0259]
[1765108377779,0.07441732,89239.0,89238.0,0.0289]
[1765108378139,0.07341732,89239.0,89238.0,0.0289]
[1765108380356,0.29753457,89239.0,89238.0,0.0289]
[1765108380777,0.07341732,89239.0,89238.0,0.0289]
[1765108380976,0.07341732,89239.0,89238.0,0.003]
[1765108386856,0.08512732,89239.0,89238.0,0.003]
[1765108391328,0.07341732,89239.0,89238.0,0.003]
[1765108392434,0.10135732,89239.0,89238.0,0.003]
[1765108392871,0.08577732,89239.0,89238.0,0.003]
[1765108397177,0.07341732,89239.0,89238.0,0.003]
[1765108399317,0.07341732,89239.0,89238.0,0.01862]
[1765108399935,0.07341732,89239.0,89238.0,0.04173]
[1765108402654,0.07341732,89239.0,89238.0,0.01862]
[1765108403269,0.29753457,89239.0,89238.0,0.01862]
[1765108403470,0.29753457,89239.0,89238.0,0.003]
[1765108404703,0.07341732,89239.0,89238.0,0.003]
[1765108406907,0.05573732,89239.0,89238.0,0.003]
[1765108407052,0.07341732,89239.0,89238.0,0.003]
[1765108412424,0.05573732,89239.0,89238.0,0.003]
[1765108412590,0.07341732,89239.0,89238.0,0.003]
[1765108413345,0.23363238,89239.0,89238.0,0.003]
[1765108413704,0.56712318,89239.0,89238.0,0.003]
[1765108413846,0.57748431,89239.0,89238.0,0.003]
[1765108414853,0.46777925,89239.0,89238.0,0.003]
[1765108415053,0.01120636,89235.0,89232.0,0.01036113]
[1765108415472,0.40110299,89233.0,89232.0,0.01036113]
[1765108415895,0.43416025,89233.0,89232.0,0.01036113]
[1765108416188,0.43403412,89233.0,89232.0,0.01036113]
[1765108418228,0.54373918,89233.0,89232.0,0.01036113]
[1765108418423,0.54473918,89233.0,89232.0,0.01036113]
[1765108418626,0.43503412,89233.0,89232.0,0.01036113]
[1765108423656,0.37251113,89233.0,89232.0,0.01036113]
[1765108432534,0.39019113,89233.0,89232.0,0.01036113]
[1765108443782,0.35204113,89233.0,89232.0,0.01036113]
[1765108444189,0.36252786,89233.0,89232.0,0.01036113]
[1765108445100,0.40239786,89233.0,89232.0,0.01036113]
[1765108451447,0.36252786,89233.0,89232.0,0.01036113]
[1765108453560,0.40212786,89233.0,89232.0,0.01036113]
[1765108454732,0.35204113,89233.0,89232.0,0.02684113]
[1765108454940,0.35809,89233.0,89232.0,0.01036113]
[1765108455142,0.38128,89233.0,89232.0,0.01036113]
[1765108455295,0.35809,89233.0,89232.0,0.01036113]
[1765108455505,0.34068,89233.0,89232.0,0.01036113]
[1765108455722,0.34168,89233.0,89232.0,0.01036113]
[1765108456294,0.38028,89233.0,89232.0,0.01036113]
[1765108458154,0.35709,89233.0,89232.0,0.01036113]
[1765108458387,0.34068,89233.0,89232.0,0.01236113]
[1765108478921,0.36387,89233.0,89232.0,0.01236113]
[1765108482938,0.37953,89233.0,89232.0,0.01236113]
[1765108483714,0.39189113,89233.0,89232.0,0.01236113]
[1765108484095,0.39189113,89233.0,89232.0,0.01036113]
[1765108484504,0.39189113,89233.0,89232.0,0.01136113]
[1765108484700,0.39189113,89233.0,89232.0,0.01036113]
[1765108484901,0.39289113,89233.0,89232.0,0.01036113]
[1765108485153,0.39289113,89233.0,89232.0,0.01136113]
[1765108485510,0.39189113,89233.0,89232.0,0.01136113]
[1765108485749,0.39289113,89233.0,89232.0,0.01136113]
[1765108486870,0.40337689,89233.0,89232.0,0.01136113]
[1765108489260,0.0112085,89218.0,89214.0,0.01109196]
[1765108489495,0.0112085,89218.0,89194.0,0.08063609]
[1765108489692,0.0112085,89218.0,89212.0,0.23551035]
[1765108489925,0.0112085,89218.0,89217.0,0.00045529]
[1765108491565,0.0112085,89218.0,89217.0,0.00545529]
[1765108492050,0.0112085,89218.0,89217.0,0.00745529]
[1765108492377,0.0112085,89218.0,89217.0,0.00245529]
[1765108492645,0.0112085,89218.0,89217.0,0.00045529]
[1765108492856,0.0112085,89218.0,89217.0,0.00145529]
[1765108493017,0.01120837,89219.0,89217.0,0.00145529]
[1765108493218,0.01120837,89219.0,89217.0,0.001]
[1765108493551,0.23537593,89219.0,89217.0,0.001]
[1765108493720,0.23537593,89219.0,89217.0,0.006]
[1765108493921,0.0112085,89218.0,89215.0,0.01120887]
[1765108494345,0.0112085,89218.0,89217.0,0.005]
[1765108494747,0.0112085,89218.0,89217.0,0.004]
[1765108495154,0.23538673,89215.0,89212.0,0.00011834]
[1765108495371,0.22417252,89217.0,89215.0,0.005]
[1765108496295,0.0112085,89218.0,89215.0,0.005]
[1765108496625,0.0112085,89218.0,89214.0,0.011209]
[1765108496861,0.0112085,89218.0,89217.0,0.005]
[1765108497237,0.0112085,89218.0,89215.0,0.01120887]
[1765108497437,0.0112085,89218.0,89215.0,0.01820887]
[1765108497826,0.0112085,89218.0,89215.0,0.01320887]
[1765108498089,0.0112085,89218.0,89217.0,0.005]
[1765108498261,0.01120837,89219.0,89217.0,0.0168]
[1765108498464,0.05573732,89220.0,89218.0,0.0108]
[1765108498741,0.05573732,89220.0,89219.0,0.0108]
[1765108500312,0.05573732,89220.0,89219.0,0.0148]
[1765108501181,0.05573732,89220.0,89219.0,0.0158]
[1765108501809,0.05573732,89220.0,89219.0,0.005]
[1765108502596,0.09484732,89220.0,89219.0,0.005]
[1765108503616,0.09484732,89220.0,89219.0,0.001]
[1765108503996,0.09484732,89220.0,89219.0,0.00339458]
[1765108504175,0.09484732,89220.0,89219.0,0.00139458]
[1765108504529,0.09484732,89220.0,89219.0,0.00239458]
[1765108505699,0.05573732,89220.0,89219.0,0.00239458]
[1765108510641,0.07341732,89220.0,89219.0,0.00239458]
[1765108511084,0.2975823,89220.0,89219.0,0.00239458]
[1765108512036,0.07341732,89220.0,89219.0,0.00239458]
[1765108512699,0.05573732,89220.0,89219.0,0.00239458]
[1765108512906,0.07341732,89220.0,89219.0,0.00239458]
[1765108518424,0.07341732,89220.0,89219.0,0.22656207]
[1765108520117,0.07341732,89220.0,89219.0,0.23736207]
[1765108522467,0.05573732,89223.0,89221.0,0.22416247]
[1765108522604,0.05573732,89223.0,89222.0,0.0216]
[1765108522805,0.01768,89227.0,89225.0,0.22415231]
[1765108523201,0.01768,89227.0,89225.0,0.23535993]
[1765108524518,0.01868,89227.0,89225.0,0.23535993]
[1765108524671,0.01868,89227.0,89225.0,0.01120762]
[1765108525244,0.02988736,89227.0,89224.0,0.01120774]
[1765108525960,0.02988736,89227.0,89225.0,0.003]
[1765108526139,0.02888736,89227.0,89224.0,0.01120774]
[1765108526660,0.02888736,89227.0,89225.0,0.001]
[1765108527177,0.02888736,89227.0,89224.0,0.01120774]
[1765108527415,0.02888736,89227.0,89224.0,0.01220774]
[1765108527595,0.03008805,89227.0,89224.0,0.01220774]
[1765108527775,0.03008805,89227.0,89224.0,0.01520774]
[1765108528397,0.01888069,89227.0,89224.0,0.01420774]
[1765108528799,0.03008805,89227.0,89224.0,0.0032428]
[1765108529198,0.03008805,89227.0,89224.0,0.01445054]
[1765108529808,0.03008805,89227.0,89225.0,0.001]
[1765108530420,0.03008805,89227.0,89224.0,0.01445054]
[1765108531059,0.03008805,89227.0,89224.0,0.01145054]
[1765108531238,0.03008805,89227.0,89225.0,0.003]
[1765108531627,0.03008805,89227.0,89224.0,0.01245054]
[1765108531832,0.03008805,89227.0,89224.0,0.01545054]
[1765108531833,0.01245054,89226.0,89224.0,0.01545054]
[1765108532072,0.01245054,89226.0,89224.0,0.0042428]
[1765108532424,0.23660281,89226.0,89224.0,0.0012428]
[1765108532594,0.23660281,89226.0,89225.0,0.003]
[1765108533155,0.23660281,89226.0,89225.0,0.004]
[1765108533607,0.23660281,89226.0,89225.0,0.003]
[1765108533798,0.23660281,89226.0,89224.0,0.0002428]
[1765108533975,0.23660281,89226.0,89225.0,0.001]
[1765108534593,0.2366029,89226.0,89224.0,0.0002428]
[1765108534793,0.2366029,89226.0,89225.0,0.004]
[1765108536848,0.2366029,89226.0,89225.0,0.005]
[1765108537412,0.2366029,89226.0,89225.0,0.004]
[1765108537616,0.2366029,89226.0,89224.0,0.0002428]
[1765108538023,0.22415236,89226.0,89225.0,0.003]
[1765108538644,0.23495236,89226.0,89225.0,0.003]
[1765108538856,0.23495236,89226.0,89224.0,0.0002428]
[1765108539061,0.23495236,89226.0,89224.0,0.0032428]
[1765108539260,0.22415236,89226.0,89224.0,0.0032428]
[1765108539796,0.01120824,89225.0,89224.0,0.0032428]
[1765108540160,0.01120824,89225.0,89224.0,0.0002428]
[1765108541054,0.01120824,89225.0,89224.0,0.0012428]
[1765108541652,0.01120824,89225.0,89224.0,0.0042428]
[1765108543008,0.01120824,89225.0,89224.0,0.22839773]
[1765108544680,0.01120824,89225.0,89224.0,0.0042428]
[1765108546416,0.06365824,89225.0,89224.0,0.0042428]
[1765108548940,0.06365824,89225.0,89224.0,0.0032428]
[1765108549419,0.06365824,89225.0,89224.0,0.0002428]
[1765108549619,0.06365824,89225.0,89224.0,0.0032428]
[1765108549837,0.03869824,89225.0,89224.0,0.0032428]
[1765108550047,0.03869824,89225.0,89224.0,0.0002428]
[1765108550267,0.03869824,89225.0,89224.0,0.0032428]
[1765108551063,0.24712066,89225.0,89224.0,0.0032428]
[1765108551265,0.02296824,89225.0,89224.0,0.0032428]
[1765108551482,0.24712066,89225.0,89224.0,0.0032428]
[1765108551710,0.28781066,89225.0,89224.0,0.0032428]
[1765108555838,0.26285066,89225.0,89224.0,0.0032428]
[1765108557494,0.02296824,89225.0,89224.0,0.0032428]
[1765108561281,0.02888824,89225.0,89224.0,0.0032428]
[1765108561457,0.02888824,89225.0,89224.0,0.23819773]
[1765108561745,0.02888824,89225.0,89224.0,0.22739773]
[1765108561893,0.02888824,89225.0,89224.0,0.0032428]
[1765108565034,0.02888824,89225.0,89224.0,0.0140428]
[1765108570650,0.02888824,89225.0,89224.0,0.0032428]
[1765108573135,0.25304066,89225.0,89224.0,0.0032428]
[1765108573867,0.02888824,89225.0,89224.0,0.0032428]
[1765108574875,0.25304066,89225.0,89224.0,0.0032428]
[1765108575234,0.02888824,89225.0,89224.0,0.0032428]
[1765108575457,0.25304066,89225.0,89224.0,0.0032428]
[1765108579023,0.02888824,89225.0,89224.0,0.0032428]
[1765108608156,0.08275111,89225.0,89224.0,0.0032428]
[1765108609276,0.05833111,89225.0,89224.0,0.0032428]
[1765108609487,0.08275111,89225.0,89224.0,0.0032428]
[1765108610051,0.08275111,89225.0,89224.0,0.0002428]
[1765108610252,0.08275111,89225.0,89224.0,0.0022428]
[1765108613700,0.05833111,89225.0,89224.0,0.0022428]
[1765108616592,0.25465353,89225.0,89224.0,0.0022428]
[1765108617257,0.03050111,89225.0,89224.0,0.0022428]
[1765108618120,0.25465353,89225.0,89224.0,0.0022428]
[1765108618365,0.03050111,89225.0,89224.0,0.0022428]
[1765108619922,0.02888824,89225.0,89224.0,0.0022428]
[1765108621377,0.25304066,89225.0,89224.0,0.0022428]
[1765108621616,0.02888824,89225.0,89224.0,0.0022428]
[1765108623126,0.02888824,89225.0,89224.0,0.00395014]
[1765108624730,0.02888824,89225.0,89224.0,0.0022428]
[1765108629547,0.02888824,89225.0,89224.0,0.00181158]
[1765108629707,0.02888824,89225.0,89224.0,0.00152483]
[1765108631028,0.02888824,89225.0,89224.0,0.22567976]
[1765108632190,0.02888824,89225.0,89224.0,0.00152483]
[1765108633457,0.25304066,89225.0,89224.0,0.00152483]
[1765108642095,0.02888824,89225.0,89224.0,0.00152483]
[1765108646117,0.02888824,89225.0,89224.0,0.00323217]
[1765108650389,0.02888824,89225.0,89224.0,0.00152483]
[1765108657031,0.01120824,89225.0,89224.0,0.00152483]
[1765108657156,0.02888824,89225.0,89224.0,0.00152483]
[1765108658731,0.25304066,89225.0,89224.0,0.00152483]
[1765108659210,0.02888824,89225.0,89224.0,0.00152483]
[1765108665164,0.25304066,89225.0,89224.0,0.00152483]
[1765108667800,0.02888824,89225.0,89224.0,0.00152483]
[1765108668217,0.02888824,89225.0,89224.0,0.00323217]
[1765108670447,0.02888824,89225.0,89224.0,0.00152483]
[1765108672057,0.02888824,89225.0,89224.0,0.00323217]
[1765108673838,0.02888824,89225.0,89224.0,0.01403217]
[1765108674055,0.01768,89225.0,89224.0,0.02483217]
[1765108675644,0.00120069,89227.0,89225.0,0.22415242]
[1765108675846,0.00120069,89227.0,89226.0,0.01250638]
[1765108676073,0.00120069,89227.0,89226.0,0.0216]
[1765108676274,0.00120069,89227.0,89226.0,0.03928]
[1765108677154,0.00220069,89227.0,89226.0,0.04728]
[1765108677762,0.00220069,89227.0,89226.0,0.05128]
[1765108680720,0.00220069,89227.0,89226.0,0.05242058]
[1765108681819,0.00220069,89227.0,89226.0,0.05298608]
[1765108688551,0.24718226,89241.0,89236.0,0.01120623]
[1765108688978,0.24718226,89241.0,89237.0,0.0108]
[1765108689163,0.01120573,89240.0,89237.0,0.05566067]
[1765108689650,0.01409508,89241.0,89237.0,0.02200611]
[1765108689854,0.01409508,89241.0,89238.0,0.03365456]
[1765108690858,0.01120573,89240.0,89238.0,0.03565456]
[1765108691398,0.01409508,89241.0,89238.0,0.03565456]
[1765108692475,0.01409508,89241.0,89238.0,0.03465456]
[1765108692785,0.00288947,89241.0,89238.0,0.26997897]
[1765108692989,0.00288947,89241.0,89238.0,0.27197897]
[1765108693313,0.00288947,89241.0,89238.0,0.23632441]
[1765108693530,0.01409508,89241.0,89239.0,0.01132]
[1765108694374,0.01199,89240.0,89239.0,0.01132]
[1765108694582,0.02832,89240.0,89239.0,0.01132]
[1765108694856,0.02832,89240.0,89239.0,0.01232]
[1765108695416,0.02832,89240.0,89239.0,0.01132]
[1765108695610,0.02993287,89240.0,89239.0,0.01188431]
[1765108695805,0.05364287,89240.0,89239.0,0.01388431]
[1765108696228,0.05364287,89240.0,89239.0,0.01188431]
[1765108696513,0.05364287,89240.0,89239.0,0.01388431]
[1765108696711,0.05364287,89240.0,89239.0,0.01188431]
[1765108697156,0.05364287,89240.0,89239.0,0.01288431]
[1765108697874,0.05364287,89240.0,89239.0,0.01188431]
[1765108698396,0.07132287,89240.0,89239.0,0.01188431]
[1765108699233,0.07132287,89240.0,89239.0,0.001]
[1765108700142,0.07132287,89240.0,89239.0,0.00058083]
[1765108700478,0.01120623,89236.0,89233.0,0.03365532]
[1765108702028,0.2241273,89235.0,89233.0,0.03365532]
[1765108702474,0.2241273,89235.0,89233.0,0.03465532]
[1765108702630,0.2241273,89235.0,89233.0,0.03565532]
[1765108703138,0.2241273,89235.0,89233.0,0.03465532]
[1765108703553,0.2241273,89235.0,89233.0,0.03665532]
[1765108704154,0.23533325,89236.0,89233.0,0.03565532]
[1765108704432,0.23533325,89236.0,89233.0,0.03665532]
[1765108704644,0.23533325,89236.0,89233.0,0.003]
[1765108705159,0.23533325,89236.0,89233.0,0.002]
[1765108705379,0.23533325,89236.0,89233.0,0.001]
[1765108705536,0.01120623,89236.0,89233.0,0.01320661]
[1765108708312,0.01768,89235.0,89233.0,0.01320661]
[1765108709347,0.01768,89235.0,89233.0,0.01120661]
[1765108709559,0.01768,89235.0,89233.0,0.01220661]
[1765108709767,0.01768,89235.0,89233.0,0.01420661]
[1765108710300,0.01120623,89236.0,89233.0,0.003]
[1765108710638,0.01768,89234.0,89233.0,0.003]
[1765108711457,0.01120674,89232.0,89227.0,0.01120736]
[1765108711674,0.01120674,89232.0,89228.0,0.01120724]
[1765108712004,0.01120674,89232.0,89228.0,0.235352]
[1765108712209,0.01120661,89233.0,89229.0,0.01120711]
[1765108712611,0.23533941,89233.0,89229.0,0.01120711]
[1765108713454,0.01120661,89233.0,89229.0,0.01320711]
[1765108713893,0.01768,89234.0,89230.0,0.23534612]
[1765108714898,0.01768,89234.0,89231.0,0.01120686]
[1765108715094,0.01120661,89233.0,89230.0,0.2373466]
[1765108715453,0.01120661,89233.0,89230.0,0.01320699]
[1765108715653,0.01120661,89233.0,89230.0,0.01420699]
[1765108715857,0.01120661,89233.0,89230.0,0.01220699]
[1765108716173,0.01120661,89233.0,89230.0,0.01420699]
[1765108716770,0.01120661,89233.0,89230.0,0.01320699]
[1765108717183,0.01120661,89233.0,89230.0,0.01420699]
[1765108717693,0.01120661,89233.0,89230.0,0.003]
[1765108718290,0.01768,89234.0,89231.0,0.01120686]
[1765108718509,0.02888649,89234.0,89231.0,0.01120686]
[1765108718674,0.23533893,89233.0,89230.0,0.003]
[1765108718859,0.01768,89234.0,89231.0,0.22413735]
[1765108719057,0.02888649,89234.0,89230.0,0.01420699]
[1765108719311,0.01120661,89233.0,89230.0,0.01420699]
[1765108719688,0.22413483,89232.0,89230.0,0.003]
[1765108719937,0.22413483,89232.0,89230.0,0.002]
[1765108720135,0.22413483,89232.0,89231.0,0.001]
[1765108720782,0.01120661,89233.0,89230.0,0.01320699]
[1765108721004,0.22413483,89232.0,89230.0,0.001]
[1765108721350,0.22413483,89232.0,89230.0,0.003]
[1765108721490,0.01120686,89231.0,89228.0,0.01120724]
[1765108721883,0.01120699,89230.0,89225.0,0.26383981]
[1765108722082,0.01120699,89230.0,89226.0,0.01120749]
[1765108723784,0.01120699,89230.0,89228.0,0.001]
[1765108724234,0.01120699,89230.0,89226.0,0.01120749]
[1765108724644,0.01120699,89230.0,89226.0,0.01320749]
[1765108725208,0.01120699,89230.0,89226.0,0.01720749]
[1765108725415,0.01120699,89230.0,89229.0,0.0108]
[1765108726035,0.23534157,89232.0,89229.0,0.0108]
[1765108726819,0.23534157,89232.0,89229.0,0.0118]
[1765108727230,0.23534157,89232.0,89229.0,0.0108]
[1765108727459,0.23534157,89232.0,89229.0,0.0148]
[1765108727655,0.23534157,89232.0,89229.0,0.0118]